bitfinex/quotes_BTCUSD_20250512
["timestamp","ask_amount","ask_price","bid_price","bid_amount"]
[1747026587880,0.44019337,103930.0,103920.0,1.27169184]
[1747026588804,0.23447851,103920.0,103910.0,0.54345371]
[1747026589013,0.33995504,103920.0,103910.0,0.83353514]
[1747026590525,0.34195504,103920.0,103910.0,0.83553514]
[1747026592570,0.34195504,103920.0,103910.0,0.82591171]
[1747026593228,0.34195504,103920.0,103910.0,0.76816987]
[1747026593447,0.33233281,103920.0,103910.0,0.76816987]
[1747026594923,0.33233281,103920.0,103910.0,0.80666472]
[1747026595126,0.33233281,103920.0,103910.0,0.81628834]
[1747026595522,0.40853417,103920.0,103910.0,0.62255103]
[1747026595693,0.40853417,103920.0,103910.0,0.34209303]
[1747026595890,0.40853417,103920.0,103910.0,0.00209303]
[1747026597109,0.51845417,103920.0,103910.0,0.00209303]
[1747026597312,0.51745417,103920.0,103910.0,0.00109303]
[1747026597811,0.53199502,103920.0,103910.0,9.303e-05]
[1747026599109,0.53299502,103920.0,103910.0,0.00109303]
[1747026599651,0.45679366,103920.0,103910.0,0.00109303]
[1747026600691,0.56667366,103920.0,103910.0,0.00109303]
[1747026606014,0.45679366,103920.0,103910.0,0.00109303]
[1747026606270,0.56667366,103920.0,103910.0,0.00109303]
[1747026610372,0.34687366,103920.0,103910.0,0.00109303]
[1747026610627,0.55209281,103920.0,103910.0,0.14671187]
[1747026612687,0.44221281,103920.0,103910.0,0.19483043]
[1747026613011,0.43259003,103920.0,103910.0,0.15633558]
[1747026613616,0.43259003,103920.0,103910.0,0.14671187]
[1747026613945,0.43259003,103920.0,103910.0,0.00109303]
[1747026619305,0.43259003,103920.0,103910.0,0.14671187]
[1747026621885,0.43259003,103920.0,103910.0,0.00109303]
[1747026624920,0.43934445,103920.0,103910.0,0.00109303]
[1747026629632,0.32946445,103920.0,103910.0,0.00109303]
[1747026630665,0.32946445,103920.0,103910.0,0.00793335]
[1747026632924,0.32946445,103920.0,103910.0,0.15355219]
[1747026633915,0.32946445,103920.0,103910.0,0.00793335]
[1747026634644,0.43934445,103920.0,103910.0,0.00793335]
[1747026634889,0.51554581,103920.0,103910.0,0.00793335]
[1747026635842,0.51454581,103920.0,103910.0,0.00693335]
[1747026636074,0.51354581,103920.0,103910.0,0.00693335]
[1747026636292,0.51754581,103920.0,103910.0,0.00693335]
[1747026653150,0.44134445,103920.0,103910.0,0.00693335]
[1747026655944,0.55122445,103920.0,103910.0,0.15255219]
[1747026656602,0.55122445,103920.0,103910.0,0.00693335]
[1747026671106,0.55122445,103920.0,103900.0,1.46622556]
[1747026671107,0.23359777,103910.0,103900.0,1.46622556]
[1747026671320,0.32945207,103910.0,103900.0,1.87520793]
[1747026671836,0.32945207,103910.0,103900.0,1.83920793]
[1747026672428,0.33045207,103910.0,103900.0,1.83920793]
[1747026672766,0.33145207,103910.0,103900.0,1.83920793]
[1747026673408,0.33145207,103910.0,103900.0,1.72155993]
[1747026673634,0.33145207,103910.0,103900.0,1.69545993]
[1747026677786,0.33145207,103910.0,103900.0,1.59267593]
[1747026678013,0.33145207,103910.0,103900.0,1.47300393]
[1747026679035,0.33145207,103910.0,103900.0,1.32738509]
[1747026679249,0.33145207,103910.0,103900.0,1.47300393]
[1747026685653,0.33145207,103910.0,103900.0,1.32738509]
[1747026685864,0.33145207,103910.0,103900.0,0.9647363]
[1747026686065,0.33821636,103910.0,103900.0,0.9647363]
[1747026686846,0.33821636,103910.0,103900.0,0.98589578]
[1747026688127,0.35275721,103910.0,103900.0,0.9647363]
[1747026688340,0.49837605,103910.0,103900.0,0.9647363]
[1747026688935,0.35275721,103910.0,103900.0,0.9647363]
[1747026690923,0.57243721,103910.0,103900.0,0.9647363]
[1747026691348,0.57243721,103910.0,103900.0,0.97517531]
[1747026691522,0.57243721,103910.0,103900.0,0.9647363]
[1747026694392,0.55789636,103910.0,103900.0,0.9647363]
[1747026694640,0.55789636,103910.0,103900.0,1.11035514]
[1747026694873,0.55793636,103910.0,103900.0,1.11035514]
[1747026696367,0.12994202,103910.0,103900.0,1.31372152]
[1747026696561,0.12386461,103910.0,103900.0,2.72182777]
[1747026696771,0.13348804,103910.0,103900.0,2.72182777]
[1747026696990,0.15273518,103910.0,103900.0,2.72872777]
[1747026697370,0.14597173,103910.0,103900.0,2.72872777]
[1747026697579,0.14597173,103910.0,103900.0,2.72182777]
[1747026697774,0.32882283,103910.0,103900.0,2.72182795]
[1747026698878,0.32882283,103910.0,103900.0,2.70257952]
[1747026699089,0.3500994,103910.0,103900.0,2.0149137]
[1747026699321,0.34047588,103910.0,103900.0,1.96679061]
[1747026699499,0.34047588,103910.0,103900.0,2.02453778]
[1747026700088,0.34047588,103910.0,103900.0,2.03416195]
[1747026700292,0.32467588,103910.0,103900.0,2.03416195]
[1747026701103,0.30957588,103910.0,103900.0,2.03416195]
[1747026701306,0.32497588,103910.0,103900.0,2.03416195]
[1747026702539,0.32497588,103910.0,103900.0,2.02453778]
[1747026702758,0.33155226,103910.0,103900.0,2.01491361]
[1747026702966,0.33155226,103910.0,103900.0,1.99308661]
[1747026703177,0.33155226,103910.0,103900.0,2.00271097]
[1747026705045,0.32192855,103910.0,103900.0,1.93533898]
[1747026705268,0.32192855,103910.0,103900.0,1.77447298]
[1747026705521,0.32192855,103910.0,103900.0,1.61967714]
[1747026705750,0.32192855,103910.0,103900.0,1.65540514]
[1747026706424,0.32192855,103910.0,103900.0,1.45035514]
[1747026707538,0.32192855,103910.0,103900.0,1.45248357]
[1747026707751,0.32192855,103910.0,103900.0,1.2937829]
[1747026719759,0.32192855,103910.0,103900.0,1.14816406]
[1747026719956,0.43172855,103910.0,103900.0,1.14816406]
[1747026724727,0.43848767,103910.0,103900.0,1.14816406]
[1747026728302,0.59864736,103910.0,103900.0,0.80816406]
[1747026728529,0.59864736,103910.0,103900.0,0.80952837]
[1747026728781,0.8042662,103910.0,103900.0,0.80952837]
[1747026729018,0.7942662,103910.0,103900.0,0.77732837]
[1747026729256,1.1342662,103910.0,103900.0,0.76172837]
[1747026729505,0.7932662,103910.0,103900.0,0.76172837]
[1747026729986,0.7952662,103910.0,103900.0,0.76172837]
[1747026730492,0.8921205,103910.0,103900.0,0.72952837]
[1747026730778,0.8911205,103910.0,103900.0,0.71930567]
[1747026730974,0.7952662,103910.0,103900.0,0.71930567]
[1747026731211,0.7992662,103910.0,103900.0,0.71930567]
[1747026731444,1.1372662,103910.0,103900.0,0.71930567]
[1747026731688,1.1372662,103910.0,103900.0,0.68710567]
[1747026731978,1.1412662,103910.0,103900.0,0.68710567]
[1747026732202,1.1412662,103910.0,103900.0,0.69739133]
[1747026732330,1.2371205,103910.0,103900.0,0.69739133]
[1747026732576,1.2331205,103910.0,103900.0,0.69739133]
[1747026732777,1.1422662,103910.0,103900.0,0.69739133]
[1747026733260,1.1372662,103910.0,103900.0,0.69739133]
[1747026733461,1.06845784,103910.0,103900.0,0.69739133]
[1747026733690,1.06445784,103910.0,103900.0,0.69739133]
[1747026734146,1.06945784,103910.0,103900.0,0.69739133]
[1747026734364,1.06445784,103910.0,103900.0,0.69739133]
[1747026734855,1.08045784,103910.0,103900.0,0.69739133]
[1747026735301,1.07345784,103910.0,103900.0,0.69739133]
[1747026735516,1.70074146,103910.0,103900.0,0.69739133]
[1747026735948,1.47831214,103910.0,103900.0,0.69739133]
[1747026736730,1.65074146,103910.0,103900.0,0.00935469]
[1747026736957,0.30940264,103890.0,103880.0,0.002]
[1747026737203,0.30940264,103890.0,103880.0,0.002485]
[1747026737204,1.48539558,103890.0,103880.0,0.002485]
[1747026737420,2.16939558,103890.0,103880.0,0.002485]
[1747026737631,2.1761547,103890.0,103880.0,0.002485]
[1747026738035,2.1811547,103890.0,103880.0,0.002485]
[1747026738259,2.1861547,103890.0,103880.0,0.002485]
[1747026738892,2.219781,103890.0,103880.0,0.002485]
[1747026739314,2.2057151,103890.0,103880.0,0.002485]
[1747026739976,2.2007151,103890.0,103880.0,0.002485]
[1747026740438,2.2077151,103890.0,103880.0,0.002485]
[1747026741076,2.2027151,103890.0,103880.0,0.002485]
[1747026741497,2.2097151,103890.0,103880.0,0.002485]
[1747026741707,2.3055694,103890.0,103880.0,0.002485]
[1747026742370,1.6215694,103890.0,103880.0,0.002485]
[1747026742847,1.7227694,103890.0,103880.0,0.002485]
[1747026743053,1.6215694,103890.0,103880.0,0.002485]
[1747026745389,1.5257151,103890.0,103880.0,0.002485]
[1747026755279,1.37283592,103890.0,103880.0,0.002485]
[1747026756192,1.71283592,103890.0,103880.0,0.002485]
[1747026757509,1.56684619,103890.0,103880.0,0.002485]
[1747026760071,1.84867998,103890.0,103880.0,0.002485]
[1747026760335,1.94453428,103890.0,103880.0,0.002485]
[1747026760573,2.14747998,103890.0,103880.0,0.002485]
[1747026760814,2.14047998,103890.0,103880.0,0.002485]
[1747026761513,2.15047998,103890.0,103880.0,0.002485]
[1747026761770,0.60180255,103870.0,103860.0,0.002]
[1747026762010,1.07794743,103870.0,103860.0,0.00204842]
[1747026762976,1.07794743,103870.0,103860.0,0.01764842]
[1747026762977,0.93871682,103870.0,103860.0,0.01764842]
[1747026763206,0.66895682,103870.0,103860.0,0.01764842]
[1747026763436,0.93871682,103870.0,103860.0,0.04300535]
[1747026763649,0.94571682,103870.0,103860.0,0.04300535]
[1747026763865,0.95271682,103870.0,103860.0,0.04300535]
[1747026764519,0.95271682,103870.0,103860.0,0.03414842]
[1747026767342,1.36851682,103870.0,103860.0,0.03414842]
[1747026771715,1.39553284,103870.0,103860.0,0.03414842]
[1747026773234,1.29561284,103870.0,103860.0,0.03414842]
[1747026773453,1.37875682,103870.0,103860.0,0.03414842]
[1747026777385,1.32875682,103870.0,103860.0,0.03414842]
[1747026777598,1.37875682,103870.0,103860.0,0.03414842]
[1747026778032,1.32875682,103870.0,103860.0,0.03414842]
[1747026778255,1.37875682,103870.0,103860.0,0.03414842]
[1747026778931,0.97163682,103870.0,103860.0,0.03414842]
[1747026779124,0.97063682,103870.0,103860.0,0.03414842]
[1747026779384,0.97663682,103870.0,103860.0,0.03414842]
[1747026780742,0.97691682,103870.0,103860.0,0.03414842]
[1747026781630,0.86683682,103870.0,103860.0,0.25656669]
[1747026781854,0.97691682,103870.0,103860.0,0.03414842]
[1747026787038,0.11461342,103870.0,103860.0,0.5393898]
[1747026787268,0.11461342,103870.0,103860.0,0.8716968]
[1747026787469,0.11748107,103870.0,103860.0,0.61754448]
[1747026787674,0.13073507,103870.0,103860.0,0.61754448]
[1747026787917,0.1367692,103870.0,103860.0,0.37418611]
[1747026788125,0.12151483,103870.0,103860.0,0.38381417]
[1747026788336,0.14076892,103870.0,103860.0,0.39344214]
[1747026788559,0.14076892,103870.0,103860.0,0.38381417]
[1747026788744,0.14076892,103870.0,103860.0,0.37418611]
[1747026788745,0.13676892,103870.0,103860.0,0.37418611]
[1747026788944,0.13876938,103870.0,103860.0,0.38481417]
[1747026789160,0.1002612,103870.0,103860.0,0.40406974]
[1747026789368,0.11951501,103870.0,103860.0,0.55676248]
[1747026789584,0.12451501,103870.0,103860.0,0.54713479]
[1747026789831,0.13414224,103870.0,103860.0,0.54713479]
[1747026790257,0.12914224,103870.0,103860.0,0.53750691]
[1747026790471,0.12914224,103870.0,103860.0,0.54713479]
[1747026790674,0.13214224,103870.0,103860.0,0.54813479]
[1747026791041,0.12251501,103870.0,103860.0,0.39462665]
[1747026791241,0.13214224,103870.0,103860.0,0.44276809]
[1747026791883,0.13214224,103870.0,103860.0,0.46202431]
[1747026792094,0.13214224,103870.0,103860.0,0.45239643]
[1747026792246,0.13214224,103870.0,103860.0,0.44276846]
[1747026792455,0.13214224,103870.0,103860.0,0.504433]
[1747026792666,0.14176956,103870.0,103860.0,0.49399399]
[1747026792861,0.14176956,103870.0,103860.0,0.47473796]
[1747026793068,0.33431793,103870.0,103860.0,0.46510971]
[1747026793289,0.33191103,103870.0,103860.0,0.26180778]
[1747026793492,0.32228426,103870.0,103860.0,0.2232944]
[1747026793694,0.31265722,103870.0,103860.0,0.2232944]
[1747026793895,0.31265722,103870.0,103860.0,0.26180778]
[1747026794147,0.12010885,103870.0,103860.0,0.30353603]
[1747026794388,0.31506426,103870.0,103860.0,0.2553944]
[1747026794528,0.31265722,103870.0,103860.0,0.2553944]
[1747026794733,0.30302999,103870.0,103860.0,0.2553944]
[1747026795336,0.31757084,103870.0,103860.0,0.0172]
[1747026795579,0.31757084,103870.0,103860.0,0.2547944]
[1747026796466,0.30302999,103870.0,103860.0,0.5348584]
[1747026796669,0.30302999,103870.0,103860.0,0.30293603]
[1747026797082,0.30302999,103870.0,103860.0,0.29330778]
[1747026797500,0.29340267,103870.0,103860.0,0.2547944]
[1747026798993,0.29340267,103870.0,103860.0,0.5947944]
[1747026800927,0.29340267,103870.0,103860.0,0.64293603]
[1747026801164,0.29340267,103870.0,103860.0,0.86523043]
[1747026801378,0.40372267,103870.0,103860.0,0.86523043]
[1747026801593,0.40372267,103870.0,103860.0,0.87485859]
[1747026802353,0.43260426,103870.0,103860.0,1.61480947]
[1747026802587,0.43260426,103870.0,103860.0,1.59207765]
[1747026802783,0.42297731,103870.0,103860.0,0.83806919]
[1747026803001,0.41335008,103870.0,103860.0,0.82844103]
[1747026803245,0.41335008,103870.0,103860.0,0.91833603]
[1747026804287,0.40372267,103870.0,103860.0,0.90870778]
[1747026804500,0.40372267,103870.0,103860.0,0.80234612]
[1747026804677,0.40372267,103870.0,103860.0,0.76383274]
[1747026804855,0.40372267,103870.0,103860.0,0.60442274]
[1747026805072,0.40372267,103870.0,103860.0,0.61486175]
[1747026805320,0.40372267,103870.0,103860.0,0.60442274]
[1747026805649,0.12010866,103870.0,103860.0,0.90821565]
[1747026805779,0.31265703,103870.0,103860.0,0.89858796]
[1747026806127,0.31265703,103870.0,103860.0,1.12088236]
[1747026806348,0.31265703,103870.0,103860.0,1.15939574]
[1747026807021,0.31265703,103870.0,103860.0,0.93710134]
[1747026807451,0.30302999,103870.0,103860.0,0.0172]
[1747026808516,0.32431754,103870.0,103860.0,0.0172]
[1747026811749,0.34001754,103870.0,103860.0,0.001]
[1747026812394,0.33801754,103870.0,103860.0,0.001]
[1747026812618,0.20219507,103860.0,103850.0,0.5947944]
[1747026812843,0.40856937,103860.0,103850.0,0.63335991]
[1747026813056,0.40856937,103860.0,103850.0,0.60447209]
[1747026813301,0.40864937,103860.0,103850.0,0.65261817]
[1747026813561,0.40864937,103860.0,103850.0,0.64298918]
[1747026813798,0.40102121,103860.0,103850.0,0.64298918]
[1747026814032,0.40302121,103860.0,103850.0,0.64298918]
[1747026814494,0.40302121,103860.0,103850.0,0.59484282]
[1747026816672,0.40302121,103860.0,103850.0,0.57834282]
[1747026817285,0.40302121,103860.0,103850.0,0.59364282]
[1747026820590,0.40302121,103860.0,103850.0,0.57834282]
[1747026824124,0.40302121,103860.0,103850.0,0.59404282]
[1747026825313,0.40302121,103860.0,103850.0,0.60388475]
[1747026831094,0.31167761,103860.0,103850.0,0.62314264]
[1747026831708,0.31167761,103860.0,103850.0,0.63277144]
[1747026832374,0.31167761,103860.0,103850.0,0.64240071]
[1747026832795,0.31167761,103860.0,103850.0,0.62314301]
[1747026833223,0.31167761,103860.0,103850.0,0.64240071]
[1747026833435,0.31167761,103860.0,103850.0,0.65202942]
[1747026834563,0.31167761,103860.0,103850.0,0.69054651]
[1747026835383,0.31167761,103860.0,103850.0,0.44582594]
[1747026835528,0.31167761,103860.0,103850.0,0.66812034]
[1747026836798,0.31167761,103860.0,103850.0,0.65849163]
[1747026837437,0.31167761,103860.0,103850.0,0.57248283]
[1747026838221,0.31167761,103860.0,103850.0,1.69855583]
[1747026838440,0.31167761,103860.0,103850.0,1.71495583]
[1747026838643,0.31167761,103860.0,103850.0,1.39623483]
[1747026839141,0.30967761,103860.0,103850.0,1.39623483]
[1747026839349,0.30767761,103860.0,103850.0,1.39623483]
[1747026839544,0.30967761,103860.0,103850.0,1.39623483]
[1747026840175,0.30967761,103860.0,103850.0,0.85790193]
[1747026841235,0.30967761,103860.0,103850.0,0.86753083]
[1747026841442,0.30967761,103860.0,103850.0,0.88678834]
[1747026842467,0.30967761,103860.0,103850.0,0.87715963]
[1747026843638,0.30967761,103860.0,103850.0,0.88678834]
[1747026843874,0.30967761,103860.0,103850.0,0.86753083]
[1747026844424,0.11711014,103860.0,103850.0,0.86753083]
[1747026844556,0.12673729,103860.0,103850.0,1.02307385]
[1747026845653,0.12673729,103860.0,103850.0,1.01807385]
[1747026846297,0.13636526,103860.0,103850.0,1.01807385]
[1747026848222,0.13636507,103860.0,103850.0,1.01807385]
[1747026848434,0.14599313,103860.0,103850.0,0.87215945]
[1747026850443,0.14599387,103860.0,103850.0,0.87215945]
[1747026851727,0.14599461,103860.0,103850.0,0.87215945]
[1747026851962,0.13636627,103860.0,103850.0,0.87215945]
[1747026852112,0.13636627,103860.0,103850.0,0.87212061]
[1747026852930,0.14599461,103860.0,103850.0,0.87212061]
[1747026853457,0.13636627,103860.0,103850.0,0.87212061]
[1747026858938,0.13636627,103860.0,103850.0,1.01803501]
[1747026860238,0.12673802,103860.0,103850.0,1.01803501]
[1747026860443,0.1074819,103860.0,103850.0,1.01803501]
[1747026860761,0.11710959,103860.0,103850.0,1.01803501]
[1747026860960,0.12673747,103860.0,103850.0,1.01803501]
[1747026862026,0.12673747,103860.0,103850.0,1.41803501]
[1747026863594,0.11710959,103860.0,103850.0,1.41803501]
[1747026863934,0.0978543,103860.0,103850.0,1.41803501]
[1747026864177,0.10748181,103860.0,103850.0,1.41803501]
[1747026864388,0.0116276,103860.0,103850.0,1.41803501]
[1747026865124,0.02125529,103860.0,103850.0,1.41803501]
[1747026865334,0.0116276,103860.0,103850.0,1.41803501]
[1747026867602,0.0106276,103860.0,103850.0,1.41803501]
[1747026867950,0.0116276,103860.0,103850.0,1.41903501]
[1747026868153,0.0106276,103860.0,103850.0,1.41903501]
[1747026868372,0.0067629,103870.0,103860.0,0.02888391]
[1747026868598,0.46472234,103890.0,103880.0,0.0096263]
[1747026868727,0.30961627,103890.0,103880.0,0.95349222]
[1747026868929,0.31924109,103890.0,103880.0,0.9438661]
[1747026869136,0.31924109,103890.0,103880.0,0.74422246]
[1747026869336,0.30961618,103890.0,103880.0,0.74422246]
[1747026869539,0.29999099,103890.0,103880.0,0.74422264]
[1747026870197,0.30199099,103890.0,103880.0,0.74622264]
[1747026870371,0.30199099,103890.0,103880.0,1.08622264]
[1747026870753,0.30199099,103890.0,103880.0,1.09584894]
[1747026872406,0.30199099,103890.0,103880.0,1.10562316]
[1747026872752,0.12873034,103890.0,103880.0,1.13124918]
[1747026872984,0.32124165,103890.0,103880.0,1.10562316]
[1747026873571,0.32124165,103890.0,103880.0,1.11524937]
[1747026873972,0.31161655,103890.0,103880.0,1.10562316]
[1747026877041,0.31161655,103890.0,103880.0,1.08637047]
[1747026877269,0.33389117,103890.0,103880.0,1.09599686]
[1747026877680,0.32426561,103890.0,103880.0,0.89232362]
[1747026877886,0.32426561,103890.0,103880.0,0.87094247]
[1747026878289,0.32426561,103890.0,103880.0,0.88056886]
[1747026878722,0.32426561,103890.0,103880.0,0.82281002]
[1747026878933,0.32426561,103890.0,103880.0,0.49768862]
[1747026879180,0.32426561,103890.0,103880.0,0.50731511]
[1747026879395,0.32426561,103890.0,103880.0,0.87247147]
[1747026879598,0.32426561,103890.0,103880.0,0.88209786]
[1747026881135,0.32426561,103890.0,103880.0,0.67842462]
[1747026881554,0.32426561,103890.0,103880.0,0.83396551]
[1747026882420,0.32426561,103890.0,103880.0,0.87247147]
[1747026882557,0.30846561,103890.0,103880.0,0.87247147]
[1747026882996,0.30846561,103890.0,103880.0,0.82433902]
[1747026883572,0.32466561,103890.0,103880.0,0.82433902]
[1747026885169,0.32466561,103890.0,103880.0,0.67842462]
[1747026885374,0.32466561,103890.0,103880.0,0.63441062]
[1747026885582,0.32466561,103890.0,103880.0,0.59930662]
[1747026886799,0.32466561,103890.0,103880.0,0.45339222]
[1747026886979,0.32466561,103890.0,103880.0,0.59930662]
[1747026887935,0.32466561,103890.0,103880.0,0.74522102]
[1747026888142,0.32466561,103890.0,103880.0,0.75484751]
[1747026889893,0.32466561,103890.0,103880.0,0.7644739]
[1747026890518,0.32466561,103890.0,103880.0,0.75484751]
[1747026891285,0.32466561,103890.0,103880.0,0.7644739]
[1747026894245,0.32466561,103890.0,103880.0,0.63781258]
[1747026894480,0.32466561,103890.0,103880.0,0.53619458]
[1747026894924,0.32466561,103890.0,103880.0,0.54582107]
[1747026895410,0.32466561,103890.0,103880.0,0.53619458]
[1747026895578,0.32466561,103890.0,103880.0,0.54582107]
[1747026897381,0.32466561,103890.0,103880.0,0.49768862]
[1747026897840,0.331428,103890.0,103880.0,0.50731511]
[1747026899359,0.331428,103890.0,103880.0,0.5169415]
[1747026899548,0.331428,103890.0,103880.0,0.6628559]
[1747026900319,0.331428,103890.0,103880.0,0.64360302]
[1747026900514,0.331428,103890.0,103880.0,0.50731511]
[1747026900954,0.331428,103890.0,103880.0,0.24197931]
[1747026901154,0.331428,103890.0,103880.0,0.21344746]
[1747026901352,0.331428,103890.0,103880.0,0.20382107]
[1747026903314,0.331428,103890.0,103880.0,0.21344746]
[1747026903526,0.331428,103890.0,103880.0,0.35936186]
[1747026905719,0.331428,103890.0,103880.0,0.34973547]
[1747026906140,0.315228,103890.0,103880.0,0.35936186]
[1747026906344,0.315228,103890.0,103880.0,0.34973547]
[1747026906720,0.315228,103890.0,103880.0,0.2732915]
[1747026907469,0.299128,103890.0,103880.0,0.2732915]
[1747026908019,0.299128,103890.0,103880.0,0.31179746]
[1747026909010,0.299128,103890.0,103880.0,0.32142385]
[1747026909146,0.299128,103890.0,103880.0,0.33105034]
[1747026909959,0.30875356,103890.0,103880.0,0.33105034]
[1747026910370,0.30875356,103890.0,103880.0,0.34067664]
[1747026910767,0.11624197,103890.0,103880.0,0.35030266]
[1747026910965,0.13549244,103890.0,103880.0,0.35992859]
[1747026911234,0.10661669,103890.0,103880.0,0.39032794]
[1747026911453,0.01076239,103890.0,103880.0,1.68898449]
[1747026911636,0.02038712,103890.0,103880.0,1.54307009]
[1747026912010,0.004,103890.0,103880.0,1.54307009]
[1747026912411,0.003,103890.0,103880.0,1.54307009]
[1747026912739,0.003,103890.0,103880.0,1.54407009]
[1747026912740,0.004,103890.0,103880.0,1.54407009]
[1747026912912,0.01362482,103890.0,103880.0,1.5545091]
[1747026913114,0.004,103890.0,103880.0,1.88407009]
[1747026913315,0.003,103890.0,103880.0,1.88407009]
[1747026913717,0.003,103890.0,103880.0,1.88507009]
[1747026914116,0.003,103890.0,103880.0,2.03098449]
[1747026915669,0.003,103890.0,103880.0,2.43098449]
[1747026916080,0.003,103890.0,103880.0,2.28507009]
[1747026916492,0.003,103890.0,103880.0,2.43098449]
[1747026929361,0.003,103890.0,103880.0,1.95513809]
[1747026929507,0.003,103890.0,103880.0,1.61513809]
[1747026929922,0.003,103890.0,103880.0,1.95513809]
[1747026930131,0.003,103890.0,103880.0,1.97063809]
[1747026931699,0.003,103890.0,103880.0,1.95513809]
[1747026931901,0.003,103890.0,103880.0,1.96513809]
[1747026933633,0.003,103890.0,103880.0,1.84537809]
[1747026934601,0.01262473,103890.0,103880.0,1.84537809]
[1747026934785,0.003,103890.0,103880.0,1.84537809]
[1747026935434,0.35274145,103890.0,103880.0,0.81743121]
[1747026935653,0.35274145,103890.0,103880.0,0.83668372]
[1747026935885,0.34311645,103890.0,103880.0,0.49604625]
[1747026936097,0.34311645,103890.0,103880.0,0.35013185]
[1747026936311,0.34311645,103890.0,103880.0,0.49604625]
[1747026936523,0.34311645,103890.0,103880.0,0.64776625]
[1747026938613,0.34311645,103890.0,103880.0,0.49604625]
[1747026939029,0.34311645,103890.0,103880.0,0.35013185]
[1747026939802,0.34311645,103890.0,103880.0,0.49604625]
[1747026941182,0.34311645,103890.0,103880.0,0.50567274]
[1747026941408,0.33349117,103890.0,103880.0,0.5441787]
[1747026942051,0.33349117,103890.0,103880.0,0.34958755]
[1747026942271,0.34311645,103890.0,103880.0,0.36627054]
[1747026942893,0.11810458,103890.0,103880.0,1.5115955]
[1747026943271,0.02224973,103890.0,103880.0,1.5115955]
[1747026943477,0.03187501,103890.0,103880.0,1.5115955]
[1747026943686,0.03187492,103890.0,103880.0,1.5115955]
[1747026944321,0.0415003,103890.0,103880.0,1.5115955]
[1747026944731,0.03187492,103890.0,103880.0,1.5115955]
[1747026944934,0.0415003,103890.0,103880.0,1.5115955]
[1747026945478,0.0415003,103890.0,103880.0,1.8515955]
[1747026946166,0.02224973,103890.0,103880.0,1.8675955]
[1747026946309,0.03187501,103890.0,103880.0,1.8675955]
[1747026946517,0.03187501,103890.0,103880.0,1.8515955]
[1747026948459,0.03187492,103890.0,103880.0,1.8515955]
[1747026949306,0.03187492,103890.0,103880.0,2.2515955]
[1747026949932,0.0415003,103890.0,103880.0,2.2515955]
[1747026950345,0.0415003,103890.0,103880.0,1.9597667]
[1747026950518,0.0415003,103890.0,103880.0,2.2515955]
[1747026952001,0.03187492,103890.0,103880.0,2.2515955]
[1747026952208,0.0415003,103890.0,103880.0,2.2515955]
[1747026956457,0.03187492,103890.0,103880.0,2.2515955]
[1747026956661,0.0415003,103890.0,103880.0,2.2515955]
[1747026957254,0.0415003,103890.0,103880.0,2.04506186]
[1747026957435,0.0415003,103890.0,103880.0,2.08356782]
[1747026957899,0.0415003,103890.0,103880.0,2.10281978]
[1747026958640,0.0415003,103890.0,103880.0,1.82061719]
[1747026958845,0.0415003,103890.0,103880.0,2.11244599]
[1747026959028,0.0415003,103890.0,103880.0,2.13169878]
[1747026961563,0.03187492,103890.0,103880.0,2.13169878]
[1747026961729,0.03187465,103890.0,103880.0,1.73169878]
[1747026962155,0.04149984,103890.0,103880.0,1.73169878]
[1747026962415,0.04149984,103890.0,103880.0,2.13169878]
[1747026962974,0.05112512,103890.0,103880.0,2.13169878]
[1747026964124,0.05112577,103890.0,103880.0,2.13169878]
[1747026964543,0.02224992,103890.0,103880.0,2.13169878]
[1747026964909,0.05414992,103890.0,103880.0,2.13169878]
[1747026965559,0.06377511,103890.0,103880.0,1.56139238]
[1747026965734,0.3617661,103890.0,103880.0,0.72721006]
[1747026965935,0.34251618,103890.0,103880.0,0.39401741]
[1747026966190,0.34251618,103890.0,103880.0,0.40364371]
[1747026966414,0.34251618,103890.0,103880.0,0.55918432]
[1747026967957,0.34251618,103890.0,103880.0,0.41326992]
[1747026968165,0.34251618,103890.0,103880.0,0.55918432]
[1747026968392,0.34251618,103890.0,103880.0,0.56881044]
[1747026969207,0.33289099,103890.0,103880.0,0.54955811]
[1747026969426,0.33289099,103890.0,103880.0,0.53993181]
[1747026969640,0.32326561,103890.0,103880.0,0.39401741]
[1747026969851,0.32326561,103890.0,103880.0,0.53993181]
[1747026970271,0.32326561,103890.0,103880.0,0.55918432]
[1747026971104,0.32326561,103890.0,103880.0,0.54955811]
[1747026971329,0.32326561,103890.0,103880.0,0.55918432]
[1747026971753,0.32326561,103890.0,103880.0,0.56881044]
[1747026971962,0.32326561,103890.0,103880.0,0.55918432]
[1747026972196,0.32326561,103890.0,103880.0,0.56881044]
[1747026972617,0.32326561,103890.0,103880.0,0.57843646]
[1747026973553,0.32326561,103890.0,103880.0,0.42289604]
[1747026973762,0.32326561,103890.0,103880.0,0.56881044]
[1747026974174,0.32326561,103890.0,103880.0,0.57843646]
[1747026974582,0.32326561,103890.0,103880.0,0.55918432]
[1747026975012,0.32326561,103890.0,103880.0,0.40364371]
[1747026975653,0.32326561,103890.0,103880.0,0.55918432]
[1747026975854,0.43298561,103890.0,103880.0,0.55918432]
[1747026976137,0.43298561,103890.0,103880.0,0.54955811]
[1747026978362,0.43298561,103890.0,103880.0,0.50142595]
[1747026978573,0.43298561,103890.0,103880.0,0.34588506]
[1747026980249,0.43298561,103890.0,103880.0,0.49179946]
[1747026982041,0.43298561,103890.0,103880.0,0.68584612]
[1747026982392,0.43298561,103890.0,103880.0,0.69547224]
[1747026982510,0.41748561,103890.0,103880.0,0.69547224]
[1747026982735,0.41748561,103890.0,103880.0,0.70509826]
[1747026983018,0.43308561,103890.0,103880.0,0.40364344]
[1747026983199,0.41071099,103890.0,103880.0,0.69547224]
[1747026983629,0.41071099,103890.0,103880.0,0.70509826]
[1747026983770,0.42621099,103890.0,103880.0,0.71472419]
[1747026985026,0.24332478,103890.0,103880.0,0.72435003]
[1747026985255,0.25295025,103890.0,103880.0,1.46331503]
[1747026986028,0.23745025,103890.0,103880.0,1.46331503]
[1747026986466,0.0988543,103890.0,103880.0,1.49521503]
[1747026986675,0.10847921,103890.0,103880.0,1.49521503]
[1747026987023,0.003,103890.0,103880.0,1.49521503]
[1747026987341,0.01262473,103890.0,103880.0,1.49521503]
[1747026990617,0.003,103890.0,103880.0,1.89521503]
[1747026992580,0.003,103890.0,103880.0,2.04112943]
[1747026992802,0.003,103890.0,103880.0,1.89521503]
[1747026998573,0.003,103890.0,103880.0,2.04112943]
[1747026999003,0.002,103910.0,103900.0,0.73130014]
[1747026999213,0.0978543,103910.0,103900.0,1.73864814]
[1747026999417,0.0978543,103910.0,103900.0,1.74578805]
[1747026999742,0.0978543,103910.0,103900.0,2.14578805]
[1747026999978,0.10747717,103910.0,103900.0,2.14578805]
[1747027000175,0.10796085,103910.0,103900.0,2.14578805]
[1747027000577,0.09933798,103910.0,103900.0,2.14678805]
[1747027001010,0.10033798,103910.0,103900.0,2.14778805]
[1747027001214,0.16070771,103910.0,103900.0,1.53194565]
[1747027001395,0.17033133,103910.0,103900.0,0.42613551]